bitfinex/quotes_SOLUSD_20251223
["timestamp","ask_amount","ask_price","bid_price","bid_amount"]
[1766501572617,4.82340606,123.01,122.98,15.52]
[1766501572796,4.82340606,123.0,122.96,0.68]
[1766501572990,4.82340606,123.0,122.97,14.84]
[1766501573311,4.82340606,123.0,122.97,15.52]
[1766501573513,4.82340606,123.01,122.97,15.52]
[1766501573684,4.82340606,123.02,122.98,0.68]
[1766501574210,18.56600152,123.03,122.98,0.68]
[1766501574418,4.82340606,123.02,122.98,0.68]
[1766501574615,4.82340606,123.03,122.99,0.68]
[1766501574911,19.20536416,123.04,122.99,0.68]
[1766501575114,10.43767296,123.04,123.01,0.68]
[1766501575312,12.94976553,123.06,123.01,0.68]
[1766501575505,15.26107902,123.06,123.01,0.68]
[1766501575813,23.38748913,123.06,123.02,0.68]
[1766501576014,18.56408307,123.06,123.02,0.68]
[1766501576319,4.82340606,123.07,123.03,15.84532228]
[1766501577594,19.40259632,123.08,123.03,15.84532228]
[1766501577920,24.22600238,123.08,123.03,15.84532228]
[1766501578300,10.63767296,123.08,123.04,0.68]
[1766501578504,1.27030191,123.11,123.06,4.82340606]
[1766501578505,5.02340606,123.11,123.06,4.82340606]
[1766501578713,0.2,123.11,123.07,0.68]
[1766501579203,5.02340606,123.11,123.07,0.68]
[1766501579820,4.82340606,123.09,123.06,14.84]
[1766501580126,4.82340606,123.1,123.06,14.84]
[1766501580634,0.2,123.11,123.07,5.50340606]
[1766501580834,0.2,123.11,123.08,5.14872834]
[1766501581018,0.2,123.11,123.08,5.82872834]
[1766501581427,0.2,123.11,123.06,14.84]
[1766501581428,0.9,123.11,123.06,14.84]
[1766501581630,0.9,123.11,123.03,0.81280988]
[1766501581631,13.84626351,123.11,123.03,0.81280988]
[1766501581817,4.82340606,123.09,123.04,20.34340606]
[1766501582011,5.52340606,123.09,123.04,20.34340606]
[1766501582330,4.82340606,123.09,123.04,20.34340606]
[1766501582839,4.82340606,123.08,123.05,0.68]
[1766501583021,11.13767296,123.08,123.02,15.52]
[1766501583211,4.82340606,123.07,123.02,15.52]
[1766501583528,15.26107902,123.08,123.03,0.68]
[1766501583738,15.26107902,123.08,123.02,27.79211523]
[1766501583739,10.43767296,123.08,123.04,4.82340606]
[1766501583924,10.43767296,123.08,123.05,0.68]
[1766501584112,15.26107902,123.08,123.05,0.68]
[1766501584312,4.82340606,123.06,123.0,0.68]
[1766501584519,0.7,123.07,123.01,15.52]
[1766501584716,4.82340606,123.05,123.01,15.52]
[1766501584947,4.82340606,123.03,122.98,0.68]
[1766501585116,4.82340606,123.02,122.98,15.52]
[1766501585551,4.82340606,123.01,122.98,0.68]
[1766501585713,4.82340606,123.01,122.96,4.82340606]
[1766501585714,4.82340606,123.0,122.96,0.68]
[1766501586022,4.82340606,123.0,122.96,14.84]
[1766501586227,12.95295078,123.01,122.96,20.34340606]
[1766501586431,12.95295078,123.01,122.97,0.68]
[1766501586627,4.82340606,123.03,122.99,0.7]
[1766501587147,10.43767296,123.04,123.0,0.7]
[1766501587444,15.26107902,123.04,123.0,0.7]
[1766501587622,4.82340606,123.03,122.98,0.7]
[1766501587945,4.82340606,123.02,122.98,0.7]
[1766501588139,12.95169252,123.03,122.98,5.52340606]
[1766501588322,12.95169252,123.03,122.99,0.7]
[1766501588725,10.43767296,123.04,123.0,0.7]
[1766501589036,23.38863088,123.04,123.0,0.7]
[1766501589237,4.82340606,123.02,123.0,0.7]
[1766501589948,10.43767296,123.04,123.0,0.7]
[1766501590147,4.82340606,123.04,123.0,0.7]
[1766501590726,4.82340606,123.02,122.97,16.67852875]
[1766501590950,4.82340606,123.02,122.98,0.7]
[1766501591247,4.82340606,123.02,122.98,14.84]
[1766501591456,4.82340606,123.02,122.99,0.7]
[1766501592259,0.69,123.01,122.93,0.7]
[1766501592465,10.43767296,122.99,122.94,15.54]
[1766501592645,4.82340606,122.97,122.94,15.54]
[1766501592826,4.82340606,122.95,122.91,4.82340606]
[1766501593026,10.43767296,122.99,122.93,14.84]
[1766501593224,10.43767296,122.99,122.94,0.7]
[1766501593430,4.82340606,122.98,122.94,0.7]
[1766501593631,10.43767296,122.99,122.94,0.7]
[1766501593842,5.51340606,123.0,122.95,5.6860672]
[1766501594041,0.69,123.0,122.95,0.86266114]
[1766501594254,4.82340606,122.97,122.92,8.13515013]
[1766501594562,4.82340606,122.97,122.93,15.54]
[1766501594866,4.82340606,122.96,122.93,15.54]
[1766501595454,4.82340606,122.95,122.91,8.83599286]
[1766501595654,4.82340606,122.96,122.92,15.54]
[1766501597346,4.82340606,122.96,122.92,27.79876584]
[1766501597553,4.82340606,122.97,122.94,0.7]
[1766501597951,15.26107902,122.98,122.94,0.7]
[1766501598644,10.43767296,122.98,122.95,0.7]
[1766501598853,10.43767296,122.99,122.96,0.86266114]
[1766501599077,4.82340606,123.0,122.96,0.86266114]
[1766501599378,8.81949589,123.01,122.96,0.86266114]
[1766501599379,4.82340606,122.99,122.96,0.7]
[1766501600780,4.82340606,122.97,122.94,15.54]
[1766501600980,4.82340606,122.95,122.92,0.7]
[1766501601565,4.82340606,122.94,122.91,15.54]
[1766501601954,4.82340606,122.95,122.91,15.54]
[1766501602472,4.82340606,122.95,122.92,0.7]
[1766501605689,15.26107902,122.93,122.87,0.7]
[1766501605874,4.82340606,122.9,122.87,22.97868085]
[1766501606073,15.26107902,122.93,122.89,0.7]
[1766501606381,15.26107902,122.93,122.89,5.52340606]
[1766501607678,15.26107902,122.93,122.9,0.7]
[1766501607879,15.26107902,122.93,122.9,15.56]
[1766501608078,10.43767296,122.93,122.9,15.56]
[1766501609998,15.26107902,122.93,122.9,15.56]
[1766501610392,10.43767296,122.93,122.9,15.56]
[1766501610597,8.82360319,122.95,122.9,20.38340606]
[1766501610795,10.43767296,122.95,122.92,0.7]
[1766501610985,4.82340606,122.94,122.91,0.16266114]
[1766501611490,15.26107902,122.95,122.91,5.6860672]
[1766501611663,4.82340606,122.95,122.91,0.16266114]
[1766501611865,10.43767296,122.93,122.85,0.1]
[1766501612171,10.43767296,122.89,122.85,0.1]
[1766501612366,0.43030191,122.88,122.85,0.1]
[1766501612566,4.82340606,122.9,122.86,0.7]
[1766501612783,15.26107902,122.89,122.86,0.7]
[1766501612990,10.43767296,122.89,122.86,15.56]
[1766501613203,10.43767296,122.89,122.86,0.7]
[1766501613362,10.43767296,122.88,122.86,0.7]
[1766501613566,15.26107902,122.88,122.86,0.7]
[1766501613785,10.43767296,122.86,122.85,0.1]
[1766501614392,15.26107902,122.86,122.85,0.1]
[1766501614567,23.40042461,122.86,122.85,0.1]
[1766501614769,23.40042461,122.86,122.83,14.86]
[1766501614770,18.57701855,122.86,122.83,14.86]
[1766501614971,4.82340606,122.84,122.83,14.86]
[1766501615208,18.57701855,122.86,122.83,14.86]
[1766501615497,4.82340606,122.84,122.83,14.86]
[1766501615678,19.23701855,122.86,122.83,14.86]
[1766501615879,10.43767296,122.84,122.83,14.86]
[1766501616393,15.26107902,122.84,122.83,14.86]
[1766501616587,15.26107902,122.84,122.82,0.1]
[1766501616893,4.82340606,122.83,122.82,0.1]
[1766501617291,15.26107902,122.84,122.82,0.1]
[1766501618393,10.43767296,122.83,122.82,0.1]
[1766501618700,10.43767296,122.82,122.8,0.1]
[1766501618899,4.82340606,122.82,122.8,0.1]
[1766501620169,4.82340606,122.81,122.8,0.1]
[1766501620582,4.82340606,122.82,122.8,0.1]
[1766501620906,4.82340606,122.81,122.8,0.1]
[1766501621078,4.82340606,122.82,122.8,0.1]
[1766501621279,4.82340606,122.81,122.8,0.1]
[1766501621786,4.82340606,122.82,122.8,0.1]
[1766501621989,4.82340606,122.82,122.76,1e-08]
[1766501621990,0.67,122.8,122.76,1e-08]
[1766501622193,10.43767296,122.78,122.76,1e-08]
[1766501622594,0.43030191,122.81,122.76,8.14596303]
[1766501622794,10.43767296,122.82,122.78,0.68]
[1766501623100,11.10767296,122.84,122.79,0.68]
[1766501623276,7.85904851,122.83,122.79,0.68]
[1766501623476,7.85904851,122.8,122.76,15.54000001]
[1766501623898,10.43767296,122.8,122.77,7.85904851]
[1766501624073,10.43767296,122.81,122.78,0.68]
[1766501624277,0.67,122.82,122.77,7.85904851]
[1766501624590,8.52904851,122.82,122.78,7.85904851]
[1766501624789,8.1366965,122.9,122.82,0.68]
[1766501624985,7.85904851,122.86,122.82,0.68]
[1766501625180,7.85904851,122.86,122.8,0.16266114]
[1766501625181,7.85904851,122.83,122.8,0.84266114]
[1766501625607,0.67,122.85,122.8,0.84266114]
[1766501625904,19.24799178,122.85,122.8,0.68]
[1766501626104,7.85904851,122.84,122.8,0.68]
[1766501626491,19.24799178,122.85,122.8,0.68]
[1766501626692,8.808896,122.87,122.81,8.53904851]
[1766501626895,8.808896,122.87,122.81,0.68]
[1766501627106,18.29672147,122.86,122.81,8.53904851]
[1766501627308,7.85904851,122.83,122.79,7.85904851]
[1766501627518,7.85904851,122.83,122.8,14.86]
[1766501627976,10.43767296,122.83,122.8,22.71904851]
[1766501628181,10.43767296,122.83,122.81,0.16266114]
[1766501628406,10.43767296,122.83,122.82,0.68]
[1766501628717,0.67,122.87,122.82,8.53904851]
[1766501628935,105.0,122.96,122.85,8.02170965]
[1766501629110,0.67,122.92,122.87,0.68]
[1766501629313,7.85904851,122.9,122.86,14.86]
[1766501629636,7.85904851,122.89,122.86,14.86]
[1766501629828,0.67,122.91,122.86,14.86]
[1766501630037,7.85904851,122.89,122.86,14.86]
[1766501630208,7.85904851,122.9,122.86,14.86]
[1766501630533,18.29672147,122.9,122.86,14.86]
[1766501631035,10.6003341,122.86,122.8,0.81433224]
[1766501631214,10.6003341,122.86,122.78,0.68]
[1766501631215,8.95935042,122.85,122.79,0.68]
[1766501631413,7.85904851,122.83,122.79,0.68]
[1766501631915,7.85904851,122.82,122.77,14.86]
[1766501632118,7.85904851,122.81,122.77,15.54]
[1766501632824,7.85904851,122.81,122.73,10.43767296]
[1766501632825,0.67,122.8,122.73,0.68]
[1766501633019,10.43767296,122.8,122.78,8.53904851]
[1766501633240,10.43767296,122.8,122.78,0.68]
[1766501633613,7.85904851,122.83,122.78,8.53904851]
[1766501633932,7.85904851,122.82,122.78,0.68]
[1766501634331,18.57908083,122.83,122.78,0.68]
[1766501634524,7.85904851,122.82,122.78,0.68]
[1766501635527,7.85904851,122.81,122.78,0.68]
[1766501636243,7.85904851,122.79,122.76,14.86]
[1766501636456,7.85904851,122.79,122.74,8.82719924]
[1766501636457,7.85904851,122.78,122.74,8.82719924]
[1766501636748,7.85904851,122.78,122.74,0.68]
[1766501636922,7.85904851,122.77,122.72,28.07339762]
[1766501637127,7.85904851,122.76,122.73,0.68]
[1766501637328,7.85904851,122.76,122.72,19.53434911]
[1766501637554,10.43767296,122.76,122.72,19.53434911]
[1766501637857,10.43767296,122.76,122.73,0.68]
[1766501638023,1.10030191,122.8,122.73,7.85904851]
[1766501638229,8.52904851,122.79,122.73,8.02170965]
[1766501638427,16.6730852,122.79,122.73,8.02170965]
[1766501638851,8.52904851,122.79,122.73,8.02170965]
[1766501639266,7.85904851,122.78,122.73,8.18437079]
[1766501639842,0.67,122.79,122.73,8.18437079]
[1766501640043,8.52904851,122.78,122.72,39.90469726]
[1766501640245,8.52904851,122.78,122.73,0.16266114]
[1766501640445,7.85904851,122.77,122.73,0.16266114]
[1766501640649,7.85904851,122.76,122.72,19.53434911]
[1766501640849,19.25169413,122.79,122.73,7.85904851]
[1766501641164,10.43767296,122.79,122.74,0.32532228]
[1766501641370,16.00124689,122.82,122.76,7.85904851]
[1766501641536,8.81199863,122.82,122.77,7.85904851]
[1766501641736,8.81199863,122.82,122.76,0.16266114]
[1766501641737,27.1087201,122.82,122.76,0.16266114]
[1766501642050,0.43030191,122.84,122.78,0.16266114]
[1766501642370,8.52904851,122.86,122.81,7.85904851]
[1766501642666,0.67,122.86,122.82,0.16266114]
[1766501642842,0.67,122.86,122.81,0.16266114]
[1766501642843,0.67,122.85,122.81,0.16266114]
[1766501643038,0.67,122.85,122.8,16.16479339]
[1766501643039,8.52904851,122.85,122.8,8.30591189]
[1766501643237,0.67,122.85,122.8,16.1649604]
[1766501643469,0.67,122.88,122.83,7.85904851]
[1766501643770,8.52904851,122.85,122.8,14.86]
[1766501643965,8.52904851,122.84,122.8,14.86]
[1766501644547,7.85904851,122.82,122.78,8.14448199]
[1766501644775,8.52904851,122.81,122.77,23.0052882]
[1766501644945,7.85904851,122.82,122.77,23.00508553]
[1766501645261,7.85904851,122.8,122.77,14.86]
[1766501645465,18.96672147,122.81,122.77,14.86]
[1766501645862,8.52904851,122.8,122.77,14.86]
[1766501646062,0.67,122.77,122.72,25.04496641]
[1766501646260,8.52904851,122.77,122.72,19.53434911]
[1766501646573,8.52904851,122.77,122.72,35.54202205]
[1766501646754,0.67,122.77,122.72,35.54202205]
[1766501647352,8.52904851,122.77,122.72,35.54202205]
[1766501647671,16.72387725,122.78,122.73,0.16266114]
[1766501647890,0.72,122.78,122.73,0.16266114]
[1766501648048,8.57904851,122.78,122.73,8.02170965]
[1766501648451,8.57904851,122.78,122.73,16.33186388]
[1766501648452,0.72,122.78,122.73,16.33186388]
[1766501648845,18.58116774,122.8,122.73,16.33186388]
[1766501648846,8.57904851,122.77,122.73,0.16266114]
[1766501649040,0.72,122.76,122.72,27.68270956]
[1766501649441,0.72,122.75,122.72,19.53434911]
[1766501650281,10.43767296,122.75,122.7,0.1]
[1766501650582,0.72,122.76,122.7,0.1]
[1766501650583,0.72,122.79,122.72,7.85904851]
[1766501650787,10.43767296,122.77,122.71,14.88]
[1766501650949,11.15767296,122.77,122.72,8.02170965]
[1766501651277,11.15767296,122.77,122.72,0.32532228]
[1766501651485,10.43767296,122.77,122.73,7.85904851]
[1766501651699,10.43767296,122.77,122.72,9.12564705]
[1766501651989,8.57904851,122.76,122.71,14.88]
[1766501652172,0.72,122.76,122.72,8.31113951]
[1766501652482,0.72,122.76,122.71,23.02881006]
[1766501652483,10.43767296,122.75,122.71,23.02881006]
[1766501652658,0.72,122.77,122.73,8.02170965]
[1766501653004,0.72,122.79,122.75,0.16266114]
[1766501653161,10.43767296,122.78,122.72,44.2149237]
[1766501653365,10.43767296,122.79,122.73,14.88]
[1766501653569,8.57904851,122.79,122.74,8.02170965]
[1766501653776,10.43767296,122.78,122.75,7.85904851]
[1766501654286,0.43030191,122.83,122.77,0.16266114]
[1766501654466,8.57904851,122.82,122.77,0.16266114]
[1766501654887,8.57904851,122.82,122.77,8.02170965]
[1766501655071,10.43767296,122.81,122.77,0.16266114]
[1766501655271,10.43767296,122.81,122.77,8.02170965]
[1766501655592,8.14093145,122.84,122.77,8.1450942]
[1766501655902,10.43767296,122.81,122.78,0.16266114]
[1766501656077,8.57904851,122.8,122.76,14.88]
[1766501656666,0.72,122.8,122.76,14.88]
[1766501657063,7.85904851,122.8,122.76,14.88]
[1766501657383,8.57904851,122.77,122.72,8.67391161]
[1766501657586,0.72,122.76,122.72,30.88760291]
[1766501657891,0.72,122.76,122.73,0.16266114]
[1766501658266,0.72,122.76,122.72,14.88]
[1766501658467,0.72,122.76,122.72,23.0286104]
[1766501658682,10.43767296,122.78,122.73,7.85904851]
[1766501658894,10.43767296,122.78,122.74,8.02170965]
[1766501659193,0.72,122.77,122.72,23.0286104]
[1766501659367,0.72,122.77,122.73,0.16266114]
[1766501659565,10.43767296,122.75,122.7,8.12170965]
[1766501659796,8.57904851,122.76,122.71,8.14919677]
[1766501659977,11.15767296,122.75,122.71,8.14919677]
[1766501660178,18.29672147,122.75,122.71,0.16266114]
[1766501660382,10.43767296,122.7,122.69,0.1]
[1766501660699,0.72,122.7,122.63,0.1]
[1766501660881,3.98490633,122.73,122.66,7.85904851]
[1766501661082,10.86797487,122.73,122.67,0.1]
[1766501661401,0.72,122.77,122.71,7.85904851]
[1766501661576,0.72,122.77,122.7,15.69499592]
[1766501661775,8.14366684,122.8,122.7,15.69499592]
[1766501661776,0.72,122.79,122.74,7.85904851]
[1766501661991,10.43767296,122.77,122.75,7.85904851]
[1766501662193,10.43767296,122.77,122.74,14.88]
[1766501662387,14.88,122.84,122.76,7.95904851]
[1766501662388,0.72,122.83,122.76,7.95904851]
[1766501662699,0.72,122.82,122.78,7.85904851]
[1766501662899,0.72,122.82,122.78,14.88]
[1766501663104,10.43767296,122.81,122.78,22.73904851]
[1766501663405,8.57904851,122.8,122.75,14.88]
[1766501663700,0.72,122.78,122.75,14.88]
[1766501664212,0.72,122.78,122.74,0.16266114]
[1766501664415,18.58118019,122.8,122.74,0.16266114]
[1766501664611,0.72,122.79,122.75,8.14637056]
[1766501664812,10.43767296,122.8,122.76,0.16266114]
[1766501665114,19.01672147,122.8,122.76,0.16266114]
[1766501665682,0.72,122.79,122.73,0.16266114]
[1766501666002,19.01672147,122.8,122.76,0.16266114]
[1766501666515,11.15767296,122.8,122.76,0.16266114]
[1766501667224,19.01672147,122.8,122.74,28.61534721]
[1766501667411,11.15767296,122.8,122.75,8.02170965]
[1766501667912,19.01672147,122.8,122.75,16.16807909]
[1766501668320,11.15767296,122.8,122.75,8.30903058]
[1766501668516,19.01672147,122.8,122.75,8.30903058]
[1766501668721,0.72,122.79,122.75,0.16266114]
[1766501668924,8.57904851,122.79,122.75,0.16266114]
[1766501669127,0.72,122.79,122.74,8.14706499]
[1766501669428,0.72,122.78,122.74,8.14706499]
[1766501669628,10.43767296,122.8,122.75,16.26830502]
[1766501669827,0.72,122.83,122.77,0.26266114]
[1766501670147,10.43767296,122.81,122.77,16.26652122]
[1766501670336,10.43767296,122.81,122.77,8.02170965]
[1766501670641,10.43767296,122.81,122.77,0.16266114]
[1766501670642,0.72,122.8,122.77,0.16266114]
[1766501671204,7.85904851,122.78,122.74,0.16266114]
[1766501671531,8.57904851,122.75,122.71,8.14917443]
[1766501671830,8.57904851,122.75,122.68,8.15084493]
[1766501671831,0.72,122.73,122.68,8.15084493]
[1766501672007,0.72,122.73,122.67,14.88]
[1766501672008,7.85904851,122.72,122.67,23.03171899]
[1766501672209,0.72,122.71,122.67,14.88]
[1766501672419,0.72,122.71,122.67,22.73904851]
[1766501672729,10.43767296,122.72,122.68,0.26266114]
[1766501672952,19.01672147,122.79,122.72,0.26266114]
[1766501673103,19.01672147,122.79,122.74,7.85904851]
[1766501673308,19.01672147,122.79,122.69,10.43767296]
[1766501673309,10.43767296,122.76,122.69,0.1]
[1766501673504,0.72,122.75,122.7,0.16266114]
[1766501673737,0.72,122.75,122.72,0.16266114]
[1766501673967,8.57904851,122.74,122.69,8.96536394]
[1766501674166,0.72,122.73,122.68,23.84627743]
[1766501674343,0.72,122.71,122.66,8.15261699]
[1766501674534,0.72,122.72,122.66,29.34942115]
[1766501674739,0.72,122.72,122.68,7.85904851]
[1766501675040,0.72,122.72,122.66,29.44942115]
[1766501675234,8.57904851,122.72,122.66,16.82692719]
[1766501675441,8.52904851,122.72,122.66,16.82692719]
[1766501675664,10.43767296,122.7,122.66,8.96787868]
[1766501675863,10.43767296,122.7,122.67,7.85904851]
[1766501676040,0.44051061,139.42,122.69,7.85904851]
[1766501676041,0.67,122.73,122.69,7.85904851]
[1766501676240,10.43767296,122.72,122.7,0.16266114]
[1766501676444,10.43767296,122.72,122.66,0.81526169]
[1766501676666,18.96672147,122.72,122.67,8.02170965]
[1766501676861,11.10767296,122.72,122.67,0.16266114]
[1766501677162,10.43767296,122.72,122.69,0.16266114]
[1766501677367,0.72,122.73,122.69,0.16266114]
[1766501677941,0.72,122.75,122.69,0.32532228]
[1766501678252,0.72,122.78,122.7,1.2403182]
[1766501678454,10.43767296,122.76,122.71,0.16266114]
[1766501678665,20.35574275,122.82,122.75,0.16266114]
[1766501678965,20.35574275,122.82,122.76,8.02170965]
[1766501678966,0.72,122.81,122.76,8.02170965]
[1766501679160,8.57904851,122.79,122.74,0.16266114]
[1766501679361,0.72,122.76,122.72,14.88]
[1766501679656,0.72,122.78,122.73,0.16266114]
[1766501679856,7.85904851,122.77,122.73,0.16266114]
[1766501680056,8.57904851,122.77,122.73,0.16266114]
[1766501680442,10.43767296,122.78,122.75,7.85904851]
[1766501680756,10.43767296,122.78,122.76,0.16266114]
[1766501680947,10.43767296,122.78,122.75,7.85904851]
[1766501681149,8.57904851,122.79,122.74,8.02170965]
[1766501681453,8.57904851,122.79,122.74,0.16266114]
[1766501681454,11.15767296,122.78,122.74,0.16266114]
[1766501681655,0.72,122.76,122.72,16.00744629]
[1766501681961,0.72,122.76,122.73,0.16266114]
[1766501682164,5.55793258,122.76,122.71,12.98722766]
[1766501682348,0.72,122.75,122.71,12.98722766]
[1766501682674,0.72,122.74,122.7,27.86778064]
[1766501683051,0.72,122.74,122.7,23.02984806]
[1766501683372,0.72,122.72,122.68,4.83793258]
[1766501683569,0.72,122.72,122.68,8.15089746]
[1766501683764,0.72,122.72,122.68,12.98883004]
[1766501683950,0.72,122.72,122.69,0.16266114]
[1766501684160,0.72,122.72,122.68,12.98883004]
[1766501684353,0.72,122.72,122.68,8.15089746]
[1766501684863,0.72,122.72,122.69,5.00059372]
[1766501685055,0.72,122.72,122.69,0.16266114]
[1766501685262,5.55793258,122.72,122.67,19.71793258]
[1766501685554,0.72,122.72,122.67,8.15151469]
[1766501685879,0.72,122.72,122.68,0.16266114]
[1766501686066,0.72,122.69,122.66,4.83793258]
[1766501686274,4.83793258,122.67,122.62,8.15525991]
[1766501686455,10.43767296,122.69,122.66,12.99037385]
[1766501686649,10.43767296,122.69,122.67,0.16266114]
[1766501686850,10.43767296,122.69,122.67,5.00059372]
[1766501687073,10.43767296,122.69,122.67,4.83793258]
[1766501687373,0.72,122.68,122.63,14.88]
[1766501687771,0.72,122.68,122.65,4.83793258]
[1766501688076,0.72,122.68,122.64,0.16266114]
[1766501688272,0.72,122.68,122.63,27.87231853]
[1766501688480,0.72,122.68,122.63,23.03438595]
[1766501688684,4.83793258,122.68,122.62,0.81552764]
[1766501688886,0.72,122.68,122.61,0.91559416]
[1766501689098,0.72,122.67,122.62,4.83793258]
[1766501689393,18.58880622,122.69,122.6,0.1]
[1766501689394,0.72,122.65,122.6,0.1]
[1766501689558,0.72,122.65,122.61,12.99344452]
[1766501689762,11.15767296,122.66,122.62,8.15508342]
[1766501690303,18.5903248,122.66,122.6,8.25660685]
[1766501690461,0.72,122.65,122.6,0.1]
[1766501690664,11.15767296,122.64,122.61,4.83793258]
[1766501690869,0.72,122.67,122.6,0.2]
[1766501691086,10.43767296,122.66,122.63,4.83793258]
[1766501691285,19.71793258,122.71,122.64,0.81539465]
[1766501691286,5.55793258,122.7,122.64,0.81539465]
[1766501691586,8.87244127,122.74,122.66,0.1]
[1766501691768,8.87244127,122.74,122.67,0.26266114]
[1766501691769,5.55793258,122.74,122.67,0.26266114]
[1766501691969,0.72,122.71,122.64,14.98]
[1766501692162,18.5867901,122.72,122.65,8.15328169]
[1766501692363,0.72,122.72,122.66,0.26266114]
[1766501692569,0.72,122.75,122.7,4.83793258]
[1766501692867,5.55793258,122.77,122.7,0.26266114]
[1766501693056,8.14398566,122.79,122.7,4.83793258]
[1766501693057,4.83793258,122.75,122.7,4.83793258]
[1766501693257,4.83793258,122.74,122.69,16.09066789]
[1766501693467,0.72,122.75,122.7,0.16266114]
[1766501693666,15.99560554,122.76,122.72,0.16266114]
[1766501693886,5.55793258,122.76,122.72,0.16266114]
[1766501694068,11.15767296,122.76,122.72,0.16266114]
[1766501694268,0.72,122.76,122.71,0.16266114]
[1766501694464,5.55793258,122.73,122.69,0.16266114]
[1766501694664,5.55793258,122.72,122.69,0.16266114]
[1766501694864,0.72,122.72,122.69,0.16266114]
[1766501695064,0.72,122.74,122.71,0.16266114]
[1766501695279,10.43767296,122.75,122.71,13.14960235]
[1766501695591,15.99560554,122.75,122.71,8.31166977]
[1766501695968,10.43767296,122.73,122.68,21.29215445]
[1766501696166,0.43030191,122.76,122.69,0.32532228]
[1766501696392,10.43767296,122.75,122.71,0.16266114]
[1766501696572,0.72,122.76,122.72,4.83793258]
[1766501696773,15.99560554,122.76,122.71,5.00059372]
[1766501696967,4.83793258,122.75,122.71,0.16266114]
[1766501697165,0.72,122.76,122.7,0.16266114]
[1766501697386,15.99560554,122.74,122.7,0.16266114]
[1766501697674,0.72,122.72,122.69,0.16266114]
[1766501697866,0.72,122.76,122.72,0.16266114]
[1766501698081,10.43767296,122.75,122.72,0.16266114]
[1766501698485,5.55793258,122.79,122.75,0.16266114]
[1766501699082,0.72,122.78,122.75,0.16266114]
[1766501699293,4.83793258,122.78,122.73,0.16266114]
[1766501699492,0.72,122.77,122.73,5.00059372]
[1766501699698,5.55793258,122.77,122.73,0.16266114]
[1766501700212,10.43767296,122.79,122.73,8.31016891]
[1766501700213,15.27560554,122.79,122.73,8.31016891]
[1766501700373,0.72,122.76,122.71,23.02906488]
[1766501700574,0.72,122.76,122.7,0.81499592]
[1766501700805,0.72,122.7,122.63,8.15457817]
[1766501700976,15.27560554,122.71,122.62,23.03505424]
[1766501700977,11.15767296,122.68,122.62,23.03505424]
[1766501701179,4.83793258,122.66,122.58,21.20985142]
[1766501701479,25.31767296,122.68,122.62,4.83793258]
[1766501701480,0.72,122.67,122.62,4.83793258]
[1766501701681,0.72,122.67,122.6,0.2]
[1766501701884,10.43767296,122.66,122.64,4.83793258]
[1766501702097,26.03767296,122.69,122.62,0.81552764]
[1766501702398,26.03767296,122.69,122.62,8.15521324]
[1766501702399,5.55793258,122.67,122.62,8.15521324]
[1766501702603,0.72,122.67,122.62,8.15521324]
[1766501702897,0.72,122.67,122.63,0.16266114]
[1766501703193,0.72,122.66,122.62,8.15526259]
[1766501703371,0.72,122.68,122.64,4.83793258]
[1766501703572,15.99560554,122.69,122.64,4.83793258]
[1766501703787,0.72,122.67,122.63,0.16266114]
[1766501704001,0.72,122.67,122.62,8.1552329]
[1766501704214,10.43767296,122.69,122.62,8.1552329]
[1766501704215,11.15767296,122.69,122.64,8.15394651]
[1766501704393,15.99560554,122.69,122.63,8.15443039]
[1766501704703,15.99560554,122.69,122.64,0.16266114]
[1766501705001,15.99560554,122.69,122.62,8.41774318]
[1766501705002,10.43767296,122.69,122.62,8.41774318]
[1766501705180,10.43767296,122.66,122.6,0.1]
[1766501705502,10.43767296,122.66,122.6,0.2]
[1766501705682,0.72,122.65,122.6,8.25617196]
[1766501705877,0.72,122.65,122.6,13.09410454]
[1766501706101,15.99560554,122.67,122.62,4.83793258]
[1766501706300,0.72,122.66,122.61,0.16266114]
[1766501706487,0.72,122.66,122.63,4.83793258]
[1766501706685,0.72,122.66,122.61,8.31860274]
[1766501706890,0.72,122.66,122.62,0.16266114]